[Event "Early-Titled-Tuesday-Blitz-August-29-2023"]
[Site "Chess.com"]
[Date "2023.08.29"]
[Round "7"]
[White "campochess"]
[Black "Gauravthegm"]
[Result "1/2-1/2"]
[WhiteElo "2202"]
[BlackElo "2409"]
[TimeControl "180+1"]
[EndTime "9:17:49 PDT"]
[Termination "Game drawn by repetition"]

1. c4 {[%clk 0:02:48.4]} 1... e5 {[%clk 0:02:58.7]} 2. Nc3 {[%clk 0:02:48.1]}
2... Nc6 {[%clk 0:02:56.9]} 3. g3 {[%clk 0:02:48.2]} 3... Nf6 {[%clk 0:02:55.1]}
4. d3 {[%clk 0:02:46.7]} 4... d5 {[%clk 0:02:46.8]} 5. cxd5 {[%clk 0:02:45.6]}
5... Nxd5 {[%clk 0:02:47.3]} 6. Bg2 {[%clk 0:02:45.7]} 6... Be6 {[%clk
0:02:46.3]} 7. Bd2 {[%clk 0:02:43.8]} 7... Be7 {[%clk 0:02:45.9]} 8. Nf3 {[%clk
0:02:43.7]} 8... O-O {[%clk 0:02:45.4]} 9. O-O {[%clk 0:02:42.8]} 9... f6 {[%clk
0:02:45.3]} 10. Rc1 {[%clk 0:02:42.5]} 10... Qd7 {[%clk 0:02:40.6]} 11. Re1
{[%clk 0:02:40.9]} 11... Kh8 {[%clk 0:02:39.2]} 12. a3 {[%clk 0:02:37.4]} 12...
Rad8 {[%clk 0:02:37.6]} 13. b4 {[%clk 0:02:27.5]} 13... a6 {[%clk 0:02:37.6]}
14. Na4 {[%clk 0:02:24.5]} 14... Qc8 {[%clk 0:02:22.8]} 15. Nc5 {[%clk
0:02:23.9]} 15... Bg4 {[%clk 0:02:20.1]} 16. Nxa6 {[%clk 0:02:19.3]} 16... bxa6
{[%clk 0:02:17.9]} 17. Rxc6 {[%clk 0:02:18.2]} 17... Qb7 {[%clk 0:02:05.8]} 18.
Qc2 {[%clk 0:02:15.2]} 18... Rd7 {[%clk 0:01:59]} 19. h3 {[%clk 0:02:13.7]}
19... Bh5 {[%clk 0:01:57.1]} 20. Nh4 {[%clk 0:02:10.2]} 20... Rc8 {[%clk
0:01:51.9]} 21. Nf5 {[%clk 0:02:06]} 21... Bf8 {[%clk 0:01:52]} 22. Ne3 {[%clk
0:01:58.8]} 22... Nxe3 {[%clk 0:01:49.8]} 23. Bxe3 {[%clk 0:01:58.8]} 23... Qb5
{[%clk 0:01:47.4]} 24. Qc4 {[%clk 0:01:52.6]} 24... Qxc4 {[%clk 0:01:46.2]} 25.
Rxc4 {[%clk 0:01:50.1]} 25... a5 {[%clk 0:01:43.9]} 26. Bc5 {[%clk 0:01:45.3]}
26... axb4 {[%clk 0:01:41.6]} 27. Bxb4 {[%clk 0:01:45.3]} 27... c5 {[%clk
0:01:33.8]} 28. Bd2 {[%clk 0:01:41.3]} 28... Ra7 {[%clk 0:01:33.8]} 29. Ra1
{[%clk 0:01:35.4]} 29... Bf7 {[%clk 0:01:33.7]} 30. Rc3 {[%clk 0:01:34.1]} 30...
c4 {[%clk 0:01:32.4]} 31. Be4 {[%clk 0:01:28.4]} 31... g6 {[%clk 0:01:29]} 32.
dxc4 {[%clk 0:01:27.7]} 32... Rxc4 {[%clk 0:01:26.6]} 33. Rxc4 {[%clk
0:01:26.7]} 33... Bxc4 {[%clk 0:01:27.5]} 34. a4 {[%clk 0:01:26.9]} 34... Bxe2
{[%clk 0:01:26.8]} 35. a5 {[%clk 0:01:26.8]} 35... Bc5 {[%clk 0:01:25.9]} 36.
Rc1 {[%clk 0:01:23.8]} 36... Bd4 {[%clk 0:01:24.1]} 37. Rc8+ {[%clk 0:01:23.2]}
37... Kg7 {[%clk 0:01:24]} 38. Bb4 {[%clk 0:01:16.8]} 38... f5 {[%clk
0:01:17.4]} 39. Bf8+ {[%clk 0:01:11.7]} 39... Kf6 {[%clk 0:01:15.1]} 40. Bd5
{[%clk 0:00:56.8]} 40... Bb5 {[%clk 0:01:05.1]} 41. Bb4 {[%clk 0:00:51.1]} 41...
Rd7 {[%clk 0:00:57.1]} 42. Bc6 {[%clk 0:00:47.7]} 42... Bxc6 {[%clk 0:00:54.3]}
43. Rxc6+ {[%clk 0:00:47.8]} 43... Kf7 {[%clk 0:00:53.2]} 44. a6 {[%clk
0:00:47.7]} 44... Ba7 {[%clk 0:00:47.5]} 45. Kf1 {[%clk 0:00:43.1]} 45... e4
{[%clk 0:00:47.1]} 46. Ke2 {[%clk 0:00:42.6]} 46... Ke8 {[%clk 0:00:44.9]} 47.
Bc5 {[%clk 0:00:42.4]} 47... Bxc5 {[%clk 0:00:40.4]} 48. Rxc5 {[%clk 0:00:41.8]}
48... Ra7 {[%clk 0:00:41.2]} 49. Rc6 {[%clk 0:00:41.1]} 49... Kd7 {[%clk
0:00:38.4]} 50. Rb6 {[%clk 0:00:40.9]} 50... Kc7 {[%clk 0:00:37.8]} 51. Rf6
{[%clk 0:00:40.4]} 51... Kd8 {[%clk 0:00:35.6]} 52. Ke3 {[%clk 0:00:36.9]} 52...
Rd7 {[%clk 0:00:33.9]} 53. Rc6 {[%clk 0:00:32.2]} 53... Ra7 {[%clk 0:00:31.6]}
54. Kd4 {[%clk 0:00:30.6]} 54... Kd7 {[%clk 0:00:27]} 55. Rb6 {[%clk 0:00:29.3]}
55... Kc7 {[%clk 0:00:26.6]} 56. Rf6 {[%clk 0:00:28.9]} 56... Kb8 {[%clk
0:00:25.3]} 57. Kc5 {[%clk 0:00:28.6]} 57... Re7 {[%clk 0:00:21.7]} 58. Kb6
{[%clk 0:00:27.2]} 58... Re8 {[%clk 0:00:22.2]} 59. Rf7 {[%clk 0:00:25.1]} 59...
h6 {[%clk 0:00:20.4]} 60. Rg7 {[%clk 0:00:23.2]} 60... Re6+ {[%clk 0:00:20.1]}
61. Kb5 {[%clk 0:00:21.7]} 61... g5 {[%clk 0:00:20.5]} 62. Rg8+ {[%clk
0:00:17.9]} 62... Ka7 {[%clk 0:00:20.4]} 63. Rf8 {[%clk 0:00:17.6]} 63... f4
{[%clk 0:00:19.2]} 64. Rf7+ {[%clk 0:00:16.5]} 64... Kb8 {[%clk 0:00:19]} 65.
gxf4 {[%clk 0:00:16.3]} 65... gxf4 {[%clk 0:00:19.2]} 66. Rxf4 {[%clk
0:00:16.4]} 66... Re5+ {[%clk 0:00:19.7]} 67. Kb6 {[%clk 0:00:15.6]} 67... Re6+
{[%clk 0:00:20.3]} 68. Kb5 {[%clk 0:00:15.8]} 68... Re5+ {[%clk 0:00:20.5]} 69.
Kc6 {[%clk 0:00:15.3]} 69... Re6+ {[%clk 0:00:20.7]} 70. Kb5 {[%clk 0:00:14.9]}
1/2-1/2

[Event "Early-Titled-Tuesday-Blitz-August-29-2023"]
[Site "Chess.com"]
[Date "2023.08.29"]
[Round "7"]
[White "kinga2008"]
[Black "KevinGeorgeMicheal"]
[Result "1-0"]
[WhiteElo "2399"]
[BlackElo "2155"]
[TimeControl "180+1"]
[EndTime "9:17:49 PDT"]
[Termination "kinga2008 won on time"]

1. e4 {[%clk 0:02:59.7]} 1... c6 {[%clk 0:02:52]} 2. Nf3 {[%clk 0:03:00.6]} 2...
d5 {[%clk 0:02:51.9]} 3. Nc3 {[%clk 0:02:59.5]} 3... Bg4 {[%clk 0:02:52.5]} 4.
d4 {[%clk 0:02:58.1]} 4... dxe4 {[%clk 0:02:50.4]} 5. Nxe4 {[%clk 0:02:58.2]}
5... Nd7 {[%clk 0:02:49.9]} 6. Bc4 {[%clk 0:02:56]} 6... Ngf6 {[%clk 0:02:49]}
7. Ng3 {[%clk 0:02:51.4]} 7... e6 {[%clk 0:02:48.4]} 8. O-O {[%clk 0:02:51.3]}
8... Bd6 {[%clk 0:02:41.1]} 9. h3 {[%clk 0:02:51.1]} 9... Bxf3 {[%clk
0:02:41.1]} 10. Qxf3 {[%clk 0:02:50.5]} 10... O-O {[%clk 0:02:40.9]} 11. Bd3
{[%clk 0:02:49.7]} 11... Re8 {[%clk 0:02:34.8]} 12. Bg5 {[%clk 0:02:49.2]} 12...
Be7 {[%clk 0:02:31.6]} 13. Rfe1 {[%clk 0:02:49]} 13... Nd5 {[%clk 0:02:29.3]}
14. Bxe7 {[%clk 0:02:47.6]} 14... Nxe7 {[%clk 0:02:26.9]} 15. Nh5 {[%clk
0:02:44.8]} 15... Ng6 {[%clk 0:02:22]} 16. Qg3 {[%clk 0:02:40.2]} 16... Nf6
{[%clk 0:02:17.9]} 17. Bxg6 {[%clk 0:02:39]} 17... hxg6 {[%clk 0:02:16.9]} 18.
Nxf6+ {[%clk 0:02:39.5]} 18... Qxf6 {[%clk 0:02:16.6]} 19. Rad1 {[%clk
0:02:39.8]} 19... Rad8 {[%clk 0:02:16.4]} 20. Re4 {[%clk 0:02:35.7]} 20... Rd7
{[%clk 0:02:04.5]} 21. c3 {[%clk 0:02:34.9]} 21... Red8 {[%clk 0:01:57.7]} 22.
Rde1 {[%clk 0:02:35]} 22... Rd5 {[%clk 0:01:57]} 23. Qc7 {[%clk 0:02:28]} 23...
R5d7 {[%clk 0:01:56.1]} 24. Qg3 {[%clk 0:02:18.9]} 24... Rd5 {[%clk 0:01:54]}
25. Rh4 {[%clk 0:02:13.5]} 25... Rg5 {[%clk 0:01:26.3]} 26. Rg4 {[%clk 0:02:12]}
26... Rxg4 {[%clk 0:01:25.4]} 27. hxg4 {[%clk 0:02:12.7]} 27... Qe7 {[%clk
0:01:20.6]} 28. f3 {[%clk 0:02:02.3]} 28... c5 {[%clk 0:01:20]} 29. Rd1 {[%clk
0:01:55.7]} 29... cxd4 {[%clk 0:01:18.9]} 30. cxd4 {[%clk 0:01:48.4]} 30... Qb4
{[%clk 0:01:14.6]} 31. Qf2 {[%clk 0:01:40.1]} 31... Rd5 {[%clk 0:01:10.8]} 32.
a3 {[%clk 0:01:32.7]} 32... Qa4 {[%clk 0:01:01.5]} 33. Rc1 {[%clk 0:01:21.8]}
33... Qxd4 {[%clk 0:01:00.1]} 34. Rc8+ {[%clk 0:01:19.2]} 34... Kh7 {[%clk
0:00:59.4]} 35. Qxd4 {[%clk 0:01:19.4]} 35... Rxd4 {[%clk 0:00:59.3]} 36. Rc7
{[%clk 0:01:20.3]} 36... f5 {[%clk 0:00:37.1]} 37. g5 {[%clk 0:01:11]} 37... b5
{[%clk 0:00:31]} 38. Rxa7 {[%clk 0:01:05.8]} 38... b4 {[%clk 0:00:30.4]} 39. Ra4
{[%clk 0:00:44.9]} 39... Rd1+ {[%clk 0:00:28.5]} 40. Kh2 {[%clk 0:00:41.1]}
40... bxa3 {[%clk 0:00:28.2]} 41. bxa3 {[%clk 0:00:28.3]} 41... e5 {[%clk
0:00:24.4]} 42. Kg3 {[%clk 0:00:18]} 42... Rd3 {[%clk 0:00:14.2]} 43. Ra8 {[%clk
0:00:13.4]} 43... e4 {[%clk 0:00:12.7]} 44. Kf2 {[%clk 0:00:11.5]} 44... Rd2+
{[%clk 0:00:11]} 45. Ke3 {[%clk 0:00:11.1]} 45... Rxg2 {[%clk 0:00:10.7]} 46.
fxe4 {[%clk 0:00:10.5]} 46... Rg3+ {[%clk 0:00:07.4]} 47. Kf2 {[%clk 0:00:07.8]}
47... Rg4 {[%clk 0:00:04.6]} 48. e5 {[%clk 0:00:05.9]} 48... Re4 {[%clk
0:00:04.2]} 49. Ra5 {[%clk 0:00:04]} 49... f4 {[%clk 0:00:03.5]} 50. a4 {[%clk
0:00:03.5]} 50... Kg8 {[%clk 0:00:02.3]} 51. Kf3 {[%clk 0:00:03.7]} 51... Re1
{[%clk 0:00:02.4]} 52. Kxf4 {[%clk 0:00:03.6]} 52... Kf7 {[%clk 0:00:02.7]} 53.
Ra7+ {[%clk 0:00:02.8]} 53... Ke6 {[%clk 0:00:02.2]} 54. Ra6+ {[%clk 0:00:03.7]}
54... Kf7 {[%clk 0:00:01.7]} 55. a5 {[%clk 0:00:04.4]} 1-0

[Event "Early-Titled-Tuesday-Blitz-August-29-2023"]
[Site "Chess.com"]
[Date "2023.08.29"]
[Round "7"]
[White "KrokerGuy"]
[Black "Chessmissile07"]
[Result "0-1"]
[WhiteElo "2497"]
[BlackElo "2820"]
[TimeControl "180+1"]
[EndTime "9:17:50 PDT"]
[Termination "Chessmissile07 won by resignation"]

1. e4 {[%clk 0:03:00.9]} 1... c5 {[%clk 0:02:58.7]} 2. Nf3 {[%clk 0:03:01.4]}
2... g6 {[%clk 0:02:59]} 3. d4 {[%clk 0:03:02.1]} 3... cxd4 {[%clk 0:02:59.4]}
4. Nxd4 {[%clk 0:03:03]} 4... Nf6 {[%clk 0:02:59.9]} 5. Nc3 {[%clk 0:03:03.8]}
5... d6 {[%clk 0:02:58.5]} 6. Be3 {[%clk 0:03:01.9]} 6... Bg7 {[%clk 0:02:57.2]}
7. f3 {[%clk 0:03:01.9]} 7... O-O {[%clk 0:02:53.8]} 8. Qd2 {[%clk 0:03:01.2]}
8... Nc6 {[%clk 0:02:54.3]} 9. Bc4 {[%clk 0:03:01.9]} 9... Bd7 {[%clk
0:02:53.7]} 10. O-O-O {[%clk 0:03:01.6]} 10... Rb8 {[%clk 0:02:54]} 11. Bb3
{[%clk 0:03:01.2]} 11... Na5 {[%clk 0:02:50.6]} 12. Kb1 {[%clk 0:03:01.2]} 12...
b5 {[%clk 0:02:51]} 13. Ka1 {[%clk 0:03:01.4]} 13... Nc4 {[%clk 0:02:51.5]} 14.
Bxc4 {[%clk 0:03:02]} 14... bxc4 {[%clk 0:02:52.4]} 15. g4 {[%clk 0:02:52.7]}
15... Qb6 {[%clk 0:02:24.5]} 16. Rb1 {[%clk 0:02:51.1]} 16... Qa5 {[%clk
0:02:24.5]} 17. Rhd1 {[%clk 0:01:48]} 17... Rb6 {[%clk 0:02:18.6]} 18. a3 {[%clk
0:01:41.4]} 18... Rfb8 {[%clk 0:01:42]} 19. g5 {[%clk 0:01:29.5]} 19... Nh5
{[%clk 0:00:55.8]} 20. Nd5 {[%clk 0:01:27.6]} 20... Qxd2 {[%clk 0:00:48.3]} 21.
Rxd2 {[%clk 0:01:28.5]} 21... R6b7 {[%clk 0:00:29.4]} 22. Nxe7+ {[%clk
0:01:28.1]} 22... Kf8 {[%clk 0:00:29.9]} 23. Nd5 {[%clk 0:01:28]} 23... Be6
{[%clk 0:00:27.2]} 24. Nb4 {[%clk 0:01:04.4]} 24... c3 {[%clk 0:00:22.1]} 25.
bxc3 {[%clk 0:00:36.9]} 25... a5 {[%clk 0:00:20.5]} 26. Nxe6+ {[%clk 0:00:37.4]}
26... fxe6 {[%clk 0:00:20.4]} 27. Bd4 {[%clk 0:00:38.3]} 27... axb4 {[%clk
0:00:18.1]} 28. Bxg7+ {[%clk 0:00:35.1]} 28... Nxg7 {[%clk 0:00:19]} 29. cxb4
{[%clk 0:00:36]} 29... Ke7 {[%clk 0:00:18.8]} 30. Rbd1 {[%clk 0:00:27.4]} 30...
Rb6 {[%clk 0:00:18.9]} 31. Kb2 {[%clk 0:00:27.4]} 31... e5 {[%clk 0:00:19.2]}
32. h4 {[%clk 0:00:15.1]} 32... Ne6 {[%clk 0:00:19.3]} 33. c3 {[%clk 0:00:14.2]}
33... Rf8 {[%clk 0:00:18.6]} 34. Rd3 {[%clk 0:00:13]} 34... Rf4 {[%clk
0:00:16.5]} 35. Rh1 {[%clk 0:00:12.7]} 35... Ng7 {[%clk 0:00:15.1]} 36. a4
{[%clk 0:00:11.5]} 36... Rf8 {[%clk 0:00:14.4]} 37. a5 {[%clk 0:00:11.6]} 37...
Rb7 {[%clk 0:00:12.2]} 38. Rhd1 {[%clk 0:00:12.3]} 38... Rd8 {[%clk 0:00:11.5]}
39. Kb3 {[%clk 0:00:10.2]} 39... Ne6 {[%clk 0:00:11.8]} 40. Kc2 {[%clk
0:00:04.1]} 40... Nf4 {[%clk 0:00:09.9]} 41. R3d2 {[%clk 0:00:04.6]} 41... Rdd7
{[%clk 0:00:09.3]} 42. a6 {[%clk 0:00:04.3]} 42... Rb6 {[%clk 0:00:09.6]} 43.
Ra1 {[%clk 0:00:03.5]} 43... Ra7 {[%clk 0:00:10.1]} 44. c4 {[%clk 0:00:01.2]}
44... Rxb4 {[%clk 0:00:09.6]} 45. Kc3 {[%clk 0:00:01.6]} 45... Rb6 {[%clk
0:00:09.3]} 46. Rda2 {[%clk 0:00:02.3]} 46... Ne6 {[%clk 0:00:08.8]} 47. Ra5
{[%clk 0:00:02.2]} 47... Nc5 {[%clk 0:00:09.1]} 48. Rb5 {[%clk 0:00:01.8]} 48...
Raxa6 {[%clk 0:00:08.4]} 49. Rxa6 {[%clk 0:00:01.3]} 49... Rxa6 {[%clk
0:00:09.3]} 50. Rb8 {[%clk 0:00:01.8]} 50... Ra3+ {[%clk 0:00:08.9]} 51. Kd2
{[%clk 0:00:02.5]} 51... Rxf3 {[%clk 0:00:09.5]} 52. Rh8 {[%clk 0:00:02.2]}
52... Nxe4+ {[%clk 0:00:07.9]} 53. Ke2 {[%clk 0:00:02.9]} 53... Rf7 {[%clk
0:00:08.4]} 54. Ke3 {[%clk 0:00:03.2]} 54... Ng3 {[%clk 0:00:08.3]} 55. Rc8
{[%clk 0:00:02.5]} 55... Nf5+ {[%clk 0:00:08.7]} 56. Ke4 {[%clk 0:00:03]} 56...
Ke6 {[%clk 0:00:08.7]} 57. Re8+ {[%clk 0:00:02.9]} 57... Ne7 {[%clk 0:00:09.2]}
58. Rh8 {[%clk 0:00:01.4]} 58... Rf4+ {[%clk 0:00:09.7]} 59. Kd3 {[%clk
0:00:02.1]} 59... Rxh4 {[%clk 0:00:10.3]} 0-1

[Event "Early-Titled-Tuesday-Blitz-August-29-2023"]
[Site "Chess.com"]
[Date "2023.08.29"]
[Round "7"]
[White "WildTricks"]
[Black "YEIKO2017"]
[Result "1-0"]
[WhiteElo "2651"]
[BlackElo "2458"]
[TimeControl "180+1"]
[EndTime "9:17:50 PDT"]
[Termination "WildTricks won on time"]

1. e4 {[%clk 0:03:00.9]} 1... c5 {[%clk 0:02:50.5]} 2. Nf3 {[%clk 0:03:00.3]}
2... d6 {[%clk 0:02:51]} 3. d4 {[%clk 0:02:59.6]} 3... cxd4 {[%clk 0:02:51.9]}
4. Qxd4 {[%clk 0:03:00]} 4... Nc6 {[%clk 0:02:50.1]} 5. Bb5 {[%clk 0:02:59.9]}
5... Bd7 {[%clk 0:02:50.6]} 6. Bxc6 {[%clk 0:02:59.5]} 6... Bxc6 {[%clk
0:02:51.5]} 7. Nc3 {[%clk 0:02:59.3]} 7... Nf6 {[%clk 0:02:51.9]} 8. Bg5 {[%clk
0:02:59]} 8... e6 {[%clk 0:02:52.4]} 9. O-O-O {[%clk 0:02:57.9]} 9... Be7 {[%clk
0:02:51.9]} 10. Qd3 {[%clk 0:02:57.9]} 10... h6 {[%clk 0:02:51.1]} 11. Bh4
{[%clk 0:02:56.7]} 11... Qa5 {[%clk 0:02:46.9]} 12. Nd4 {[%clk 0:02:55.8]} 12...
Rc8 {[%clk 0:02:39.1]} 13. f4 {[%clk 0:02:54.8]} 13... g5 {[%clk 0:02:14.8]} 14.
fxg5 {[%clk 0:02:54.4]} 14... hxg5 {[%clk 0:02:15.7]} 15. Bg3 {[%clk 0:02:55]}
15... a6 {[%clk 0:01:49.9]} 16. Nb3 {[%clk 0:02:53.9]} 16... Qc7 {[%clk
0:01:43.7]} 17. Rhf1 {[%clk 0:02:42.2]} 17... Nd7 {[%clk 0:01:26.9]} 18. Qf3
{[%clk 0:02:03.8]} 18... Rf8 {[%clk 0:01:14.1]} 19. Qh5 {[%clk 0:01:59.4]} 19...
Ne5 {[%clk 0:01:06.7]} 20. Nd4 {[%clk 0:01:49.7]} 20... Bd7 {[%clk 0:01:00.3]}
21. Bxe5 {[%clk 0:01:30.3]} 21... dxe5 {[%clk 0:00:58.8]} 22. Nf3 {[%clk
0:01:30.9]} 22... b5 {[%clk 0:00:39.8]} 23. Rd2 {[%clk 0:01:24.4]} 23... b4
{[%clk 0:00:39.5]} 24. Nd1 {[%clk 0:01:16.2]} 24... Qc4 {[%clk 0:00:30.1]} 25.
Nxe5 {[%clk 0:00:32.5]} 25... Qxf1 {[%clk 0:00:29.3]} 26. Nxd7 {[%clk 0:00:32]}
26... Rg8 {[%clk 0:00:17.3]} 27. b3 {[%clk 0:00:26.2]} 27... Qf4 {[%clk
0:00:08.1]} 28. Qh7 {[%clk 0:00:24.4]} 28... Rf8 {[%clk 0:00:06.2]} 29. Nxf8
{[%clk 0:00:23.7]} 29... Bxf8 {[%clk 0:00:07.1]} 30. g3 {[%clk 0:00:21.4]} 30...
Qe5 {[%clk 0:00:07.3]} 31. Kb1 {[%clk 0:00:19.4]} 31... Bg7 {[%clk 0:00:06.7]}
32. c3 {[%clk 0:00:15.3]} 32... bxc3 {[%clk 0:00:06.1]} 33. Qg8+ {[%clk
0:00:14.3]} 33... Ke7 {[%clk 0:00:02.5]} 34. Qxc8 {[%clk 0:00:13.4]} 34... cxd2
{[%clk 0:00:02.9]} 35. Qb7+ {[%clk 0:00:13.5]} 35... Kf6 {[%clk 0:00:01.5]} 36.
Kc2 {[%clk 0:00:12.2]} 36... Kg6 {[%clk 0:00:01.9]} 37. Kxd2 {[%clk 0:00:12.7]}
37... Qd4+ {[%clk 0:00:02.1]} 38. Ke2 {[%clk 0:00:12.3]} 38... Qa1 {[%clk
0:00:01.6]} 39. a4 {[%clk 0:00:11]} 39... Qa2+ {[%clk 0:00:01.9]} 40. Kd3 {[%clk
0:00:09.7]} 40... Qb1+ {[%clk 0:00:02.2]} 41. Kd2 {[%clk 0:00:10.2]} 41... Qa2+
{[%clk 0:00:02.2]} 42. Kd3 {[%clk 0:00:07.4]} 42... Qb1+ {[%clk 0:00:02.5]} 43.
Kd2 {[%clk 0:00:06.9]} 43... Qa2+ {[%clk 0:00:03]} 44. Ke1 {[%clk 0:00:07.1]}
44... Qc2 {[%clk 0:00:02.7]} 45. Qxa6 {[%clk 0:00:07]} 45... Qxh2 {[%clk
0:00:02.2]} 46. Qd3 {[%clk 0:00:06.2]} 46... Be5 {[%clk 0:00:02.1]} 47. Qf3
{[%clk 0:00:03.3]} 47... Bxg3+ {[%clk 0:00:01.9]} 48. Kf1 {[%clk 0:00:04]} 48...
Bf4 {[%clk 0:00:02.3]} 49. Nf2 {[%clk 0:00:03.3]} 49... Qh8 {[%clk 0:00:01.7]}
50. a5 {[%clk 0:00:02]} 50... Qa1+ {[%clk 0:00:02.2]} 51. Kg2 {[%clk 0:00:01.7]}
51... Qxa5 {[%clk 0:00:03.1]} 52. Qd3 {[%clk 0:00:01.9]} 52... Qd2 {[%clk
0:00:02.7]} 53. Qf3 {[%clk 0:00:01.5]} 53... Qd1 {[%clk 0:00:02.4]} 54. Qxd1
{[%clk 0:00:01.4]} 54... Be3 {[%clk 0:00:02.4]} 55. Qc2 {[%clk 0:00:02.3]} 55...
g4 {[%clk 0:00:02.5]} 56. e5+ {[%clk 0:00:03.2]} 1-0

[Event "Early-Titled-Tuesday-Blitz-August-29-2023"]
[Site "Chess.com"]
[Date "2023.08.29"]
[Round "7"]
[White "Caisachess"]
[Black "NovozhilovSemen"]
[Result "0-1"]
[WhiteElo "2332"]
[BlackElo "2523"]
[TimeControl "180+1"]
[EndTime "9:17:50 PDT"]
[Termination "NovozhilovSemen won on time"]

1. e4 {[%clk 0:03:00.9]} 1... e6 {[%clk 0:02:08.5]} 2. d4 {[%clk 0:02:58.3]}
2... d5 {[%clk 0:02:08.4]} 3. Bd3 {[%clk 0:02:57.1]} 3... c5 {[%clk 0:02:05.7]}
4. exd5 {[%clk 0:02:56.4]} 4... exd5 {[%clk 0:02:05.8]} 5. Nf3 {[%clk
0:02:55.6]} 5... Nf6 {[%clk 0:02:03.9]} 6. O-O {[%clk 0:02:54.5]} 6... h6 {[%clk
0:02:01.9]} 7. Re1+ {[%clk 0:02:53.6]} 7... Be7 {[%clk 0:02:01.3]} 8. dxc5
{[%clk 0:02:54.2]} 8... O-O {[%clk 0:02:01.5]} 9. b4 {[%clk 0:02:48.1]} 9... a5
{[%clk 0:02:00.3]} 10. c3 {[%clk 0:02:47.5]} 10... Na6 {[%clk 0:01:52.5]} 11.
Qb3 {[%clk 0:02:27.4]} 11... Ne4 {[%clk 0:01:21.1]} 12. Nbd2 {[%clk 0:02:10.5]}
12... axb4 {[%clk 0:01:02.3]} 13. cxb4 {[%clk 0:01:56.8]} 13... Bf6 {[%clk
0:01:00.8]} 14. Bb2 {[%clk 0:01:45.6]} 14... Naxc5 {[%clk 0:00:38.3]} 15. bxc5
{[%clk 0:01:21.8]} 15... Nxc5 {[%clk 0:00:39.2]} 16. Bxf6 {[%clk 0:01:16.5]}
16... Nxb3 {[%clk 0:00:38.3]} 17. Bxd8 {[%clk 0:01:16.5]} 17... Nxa1 {[%clk
0:00:38.7]} 18. Be7 {[%clk 0:00:46.9]} 18... Re8 {[%clk 0:00:38.6]} 19. Bb5
{[%clk 0:00:46.1]} 19... Nc2 {[%clk 0:00:38.5]} 20. Bxe8 {[%clk 0:00:41]} 20...
Nxe1 {[%clk 0:00:38.6]} 21. Nxe1 {[%clk 0:00:41.4]} 21... Ra6 {[%clk 0:00:26.2]}
22. Bb5 {[%clk 0:00:19.7]} 22... Re6 {[%clk 0:00:26.2]} 23. Kf1 {[%clk
0:00:17.9]} 23... Rxe7 {[%clk 0:00:26.1]} 24. Nef3 {[%clk 0:00:18.3]} 24... Rc7
{[%clk 0:00:24.8]} 25. a4 {[%clk 0:00:16.2]} 25... Rc3 {[%clk 0:00:22.4]} 26.
Ke2 {[%clk 0:00:15.6]} 26... Bg4 {[%clk 0:00:20.8]} 27. h3 {[%clk 0:00:15.1]}
27... Bh5 {[%clk 0:00:21]} 28. g4 {[%clk 0:00:14.3]} 28... Bg6 {[%clk
0:00:21.5]} 29. Nd4 {[%clk 0:00:13.6]} 29... Rxh3 {[%clk 0:00:21.4]} 30. N2f3
{[%clk 0:00:11.6]} 30... h5 {[%clk 0:00:20.4]} 31. Bd7 {[%clk 0:00:09.5]} 31...
hxg4 {[%clk 0:00:19.9]} 32. Bxg4 {[%clk 0:00:09.6]} 32... Rh1 {[%clk 0:00:20.8]}
33. Nb5 {[%clk 0:00:06.2]} 33... Ra1 {[%clk 0:00:19.6]} 34. Nc3 {[%clk
0:00:03.7]} 34... Be4 {[%clk 0:00:15.9]} 35. Nd4 {[%clk 0:00:04]} 35... Ra3
{[%clk 0:00:13.9]} 36. Kd2 {[%clk 0:00:04.3]} 36... g6 {[%clk 0:00:13.1]} 37.
Bc8 {[%clk 0:00:04.6]} 37... b6 {[%clk 0:00:13]} 38. Bb7 {[%clk 0:00:04.6]}
38... f5 {[%clk 0:00:12.1]} 39. f3 {[%clk 0:00:04.4]} 39... g5 {[%clk
0:00:09.8]} 40. fxe4 {[%clk 0:00:04.8]} 40... dxe4 {[%clk 0:00:10.7]} 41. Nxf5
{[%clk 0:00:05]} 41... e3+ {[%clk 0:00:11.1]} 42. Nxe3 {[%clk 0:00:03.2]} 42...
Kf7 {[%clk 0:00:09.8]} 43. Bd5+ {[%clk 0:00:04.1]} 43... Ke7 {[%clk 0:00:09.9]}
44. Nc4 {[%clk 0:00:04.1]} 44... Ra1 {[%clk 0:00:10]} 45. Nxb6 {[%clk
0:00:04.5]} 45... Kd6 {[%clk 0:00:10.2]} 46. Nc4+ {[%clk 0:00:05.4]} 46... Kc5
{[%clk 0:00:10.7]} 47. Bf7 {[%clk 0:00:04.5]} 47... g4 {[%clk 0:00:11.1]} 48.
Ne4+ {[%clk 0:00:04.5]} 48... Kd4 {[%clk 0:00:11.5]} 49. Ng3 {[%clk 0:00:05.1]}
49... Ra2+ {[%clk 0:00:12.1]} 50. Kc1 {[%clk 0:00:04.1]} 50... Rf2 {[%clk
0:00:12.6]} 51. Nd2 {[%clk 0:00:03.3]} 51... Rxf7 {[%clk 0:00:12.4]} 52. Nb3+
{[%clk 0:00:03.4]} 52... Kc3 {[%clk 0:00:12.7]} 53. Ne2+ {[%clk 0:00:03.6]}
53... Kxb3 {[%clk 0:00:12.8]} 54. Nd4+ {[%clk 0:00:04.2]} 54... Kc4 {[%clk
0:00:12.9]} 55. Nc6 {[%clk 0:00:04]} 55... Rf5 {[%clk 0:00:11.5]} 56. a5 {[%clk
0:00:03.4]} 56... g3 {[%clk 0:00:12.1]} 57. a6 {[%clk 0:00:03.5]} 57... g2
{[%clk 0:00:12.7]} 0-1